bitfinex/quotes_ETHUSD_20251023
["timestamp","ask_amount","ask_price","bid_price","bid_amount"]
[1761230540768,3.401,3843.1,3843.0,0.50688]
[1761230540965,3.401,3843.1,3843.0,3.10901374]
[1761230541393,3.401,3843.1,3843.0,0.50688]
[1761230541669,3.401,3843.1,3842.2,2.60264557]
[1761230541670,3.401,3843.1,3842.9,3.10902314]
[1761230541870,3.401,3843.1,3843.0,3.10901374]
[1761230542093,0.0002,3843.2,3843.1,0.50688]
[1761230542281,0.0002,3843.2,3843.0,2.60213374]
[1761230542282,3.4012,3843.2,3843.0,0.50688]
[1761230542476,3.4012,3843.2,3843.0,3.10900176]
[1761230542894,3.4012,3843.2,3842.9,3.1090743]
[1761230543088,3.4012,3843.2,3843.1,0.50688]
[1761230543600,3.4012,3843.2,3843.0,0.50688]
[1761230544278,0.0002,3843.2,3843.1,3.10894604]
[1761230544486,3.4012,3843.2,3843.1,3.10894604]
[1761230544778,3.4012,3843.2,3843.1,0.50688]
[1761230544779,0.0002,3843.2,3843.1,0.50688]
[1761230544996,3.4012,3843.2,3843.1,3.10894604]
[1761230545396,0.0002,3843.2,3843.1,3.10894604]
[1761230546300,0.0002,3843.2,3843.1,0.50688]
[1761230546502,0.0002,3843.2,3843.1,3.10894604]
[1761230546684,0.0002,3843.2,3843.1,0.50688]
[1761230548104,0.0002,3843.2,3842.5,2.60247189]
[1761230548304,2.60220153,3843.2,3841.5,1.5572]
[1761230548508,0.4368,3843.1,3841.5,0.002]
[1761230548729,3.4,3843.0,3841.5,0.002]
[1761230548877,2.6029349,3841.9,3841.5,0.002]
[1761230549290,0.2278,3842.9,3841.8,0.50688]
[1761230549440,3.8685,3842.8,3842.0,2.60280918]
[1761230549591,3.4,3842.8,3842.1,0.50688]
[1761230549792,6.00227444,3842.8,3842.1,0.50688]
[1761230550020,0.1304,3842.2,3842.0,0.50688]
[1761230550222,3.4,3842.1,3842.0,3.1096385]
[1761230550432,0.1304,3842.1,3842.0,3.1096385]
[1761230550646,3.5304,3842.1,3842.0,3.1096385]
[1761230551127,3.399,3842.2,3842.1,0.50688]
[1761230551448,3.399,3842.2,3842.1,3.10962329]
[1761230551653,2.60293667,3843.3,3843.1,2.60206604]
[1761230551654,0.001,3843.3,3843.1,2.60206604]
[1761230551949,0.001,3843.3,3843.1,3.10894604]
[1761230552098,0.001,3843.3,3843.1,3.1349667]
[1761230552299,0.001,3843.3,3843.1,3.10894604]
[1761230553362,0.001,3843.1,3842.9,2.60214858]
[1761230553526,0.001,3843.1,3842.1,3.399]
[1761230553722,0.001,3843.1,3843.0,3.10901374]
[1761230555248,0.001,3843.1,3843.0,0.50688]
[1761230555447,0.001,3843.1,3841.5,0.002]
[1761230555647,0.001,3843.1,3841.8,1.5552]
[1761230555856,0.141,3843.0,3841.5,0.002]
[1761230556159,0.141,3843.0,3842.9,0.50688]
[1761230556671,0.141,3843.0,3842.9,2.60220146]
[1761230556966,0.141,3843.0,3842.8,0.50688]
[1761230557167,0.141,3843.0,3842.8,3.10912846]
[1761230557332,0.141,3843.0,3842.9,3.10908146]
[1761230558236,0.141,3843.0,3842.9,0.50688]
[1761230558865,3.398,3843.0,3842.8,2.60220501]
[1761230559038,3.398,3843.0,3842.9,0.50688]
[1761230559370,3.398,3843.0,3842.5,0.50688]
[1761230559553,3.398,3843.0,3842.9,0.50688]
[1761230560160,0.001,3843.1,3843.0,0.50688]
[1761230560378,1.171,3843.1,3843.0,0.50688]
[1761230560681,1.6395,3843.1,3842.6,0.50688]
[1761230561165,0.4685,3843.0,3842.6,0.50688]
[1761230561373,0.4685,3843.0,3841.9,2.60283217]
[1761230561545,0.2278,3842.7,3841.6,0.002]
[1761230561751,0.2278,3842.7,3842.2,2.60261389]
[1761230561939,0.2278,3842.7,3842.2,2.60267522]
[1761230562148,1.783,3842.7,3841.9,0.50688]
[1761230562543,1.783,3842.7,3842.1,0.50688]
[1761230562865,1.783,3842.7,3842.0,2.60275241]
[1761230563034,3.07092008,3842.6,3842.1,0.50688]
[1761230563366,2.60259011,3842.4,3841.6,0.002]
[1761230563666,2.60282973,3842.0,3841.6,0.002]
[1761230563833,1.5552,3841.9,3841.6,0.002]
[1761230564033,2.0237,3841.9,3841.6,0.002]
[1761230564233,0.4685,3841.8,3841.6,0.002]
[1761230564430,3.398,3841.7,3841.6,0.002]
[1761230566460,0.4685,3842.2,3841.6,0.002]
[1761230566662,3.398,3841.7,3841.6,0.002]
[1761230567552,3.398,3841.7,3841.6,0.50888]
[1761230569537,3.398,3841.7,3841.6,3.11196204]
[1761230569732,2.60216742,3843.0,3841.7,0.50688]
[1761230569968,3.07111559,3842.3,3841.7,0.50688]
[1761230570145,2.60267636,3842.2,3841.7,0.50688]
[1761230570344,3.398,3842.1,3841.6,3.11195412]
[1761230570548,3.8665,3842.1,3841.7,0.50688]
[1761230570770,2.60294653,3841.8,3841.7,0.50688]
[1761230570969,2.6028803,3841.9,3841.6,0.002]
[1761230571269,0.4685,3841.8,3841.6,0.50888]
[1761230571471,0.4685,3841.8,3841.6,0.002]
[1761230571667,4.15821429,3841.7,3841.6,0.002]
[1761230571968,4.15821429,3841.7,3841.6,0.50888]
[1761230572166,4.75711429,3841.7,3841.6,0.50888]
[1761230572871,8.15511429,3841.7,3841.6,0.50888]
[1761230573566,8.15431429,3841.7,3841.6,0.50888]
[1761230575382,8.15431429,3841.7,3841.6,0.002]
[1761230577268,4.15828204,3841.6,3841.5,1e-08]
[1761230577473,4.62678204,3841.6,3841.5,1e-08]
[1761230577676,2.60328534,3841.3,3841.2,1e-08]
[1761230577875,9.50848534,3841.3,3841.2,1e-08]
[1761230578044,9.97698534,3841.3,3841.2,1e-08]
[1761230579742,9.97698534,3841.3,3838.7,2.60500129]
[1761230579743,2.60449793,3839.6,3838.7,2.60500129]
[1761230579949,3.398,3839.5,3837.4,2.60593109]
[1761230580150,1.5552,3840.0,3837.4,2.60593109]
[1761230580151,2.60464898,3839.3,3838.6,2.6050551]
[1761230580357,3.398,3839.2,3838.8,2.60496712]
[1761230580581,3.398,3839.1,3838.6,2.60510432]
[1761230580881,2.60458923,3839.4,3837.6,1.5552]
[1761230580882,3.398,3839.0,3838.8,0.50688]
[1761230581051,3.398,3838.9,3838.8,0.50688]
[1761230581252,3.398,3838.9,3838.8,3.11186072]
[1761230581945,0.467,3840.5,3838.4,0.50688]
[1761230582178,0.2276,3840.2,3838.4,2.60519227]
[1761230582352,0.2276,3840.2,3838.0,2.06208]
[1761230582353,0.2276,3841.5,3839.6,0.50688]
[1761230582570,0.504,3842.1,3840.1,2.60409885]
[1761230582752,0.504,3842.1,3841.5,0.50688]
[1761230583089,0.504,3842.1,3840.6,1.5552]
[1761230583090,0.504,3842.1,3841.7,0.50688]
[1761230583458,0.504,3842.1,3841.7,3.10989094]
[1761230583664,0.504,3842.1,3839.8,0.93122235]
[1761230583665,0.504,3842.1,3840.9,0.50688]
[1761230583980,0.504,3842.1,3842.0,0.50688]
[1761230584383,0.504,3842.1,3842.0,3.10969103]
[1761230584803,0.504,3842.1,3842.0,0.50688]
[1761230585098,3.57376125,3842.1,3840.3,0.12798092]
[1761230585264,0.971,3842.1,3840.3,0.12798092]
[1761230585462,2.60331034,3841.3,3840.5,2.60376927]
[1761230585715,2.60342089,3841.1,3840.3,0.12798092]
[1761230585858,2.83149809,3840.4,3839.3,2.60464048]
[1761230586061,3.398,3840.3,3837.7,2.60566602]
[1761230586280,5.4202,3840.3,3837.9,0.13388914]
[1761230586480,2.0222,3840.2,3837.7,2.60566602]
[1761230586693,2.0222,3840.2,3837.6,0.93122235]
[1761230586694,3.398,3840.1,3837.6,0.93122235]
[1761230586867,1.5552,3840.0,3837.5,2.60584274]
[1761230587076,2.60444527,3839.6,3837.5,2.60584274]
[1761230587379,6.0025085,3839.5,3839.0,0.50688]
[1761230587580,3.398,3839.4,3838.8,2.6049573]
[1761230587762,1.5552,3839.3,3838.4,1.39978]
[1761230587960,2.60400234,3840.3,3838.4,1.39978]
[1761230587961,2.60410262,3840.1,3839.5,0.50688]
[1761230588156,1.5552,3839.9,3839.5,0.50688]
[1761230588377,1.5552,3839.9,3839.4,0.50688]
[1761230588575,1.5552,3839.9,3839.3,0.50688]
[1761230588997,0.467,3839.8,3838.4,1.39978]
[1761230589200,0.467,3839.8,3838.5,2.60518431]
[1761230589372,0.467,3839.8,3839.2,2.60465511]
[1761230589583,0.467,3839.8,3838.4,4.00501669]
[1761230589771,3.398,3839.7,3839.5,2.60447591]
[1761230590092,0.2276,3840.4,3839.5,3.11138579]
[1761230590093,3.398,3839.6,3839.5,3.11138579]
[1761230590406,0.467,3840.9,3839.5,0.1304]
[1761230590571,3.398,3840.8,3840.3,0.50688]
[1761230590769,0.1304,3840.4,3840.3,3.11084323]
[1761230590983,0.1304,3840.4,3840.3,0.50688]
[1761230591385,0.1304,3840.4,3840.3,3.11084323]
[1761230591595,0.1304,3840.4,3840.3,0.50688]
[1761230591783,0.5974,3840.4,3840.3,0.50688]
[1761230591988,0.467,3840.4,3840.3,0.50688]
[1761230593008,2.60401123,3840.3,3839.6,2.60443346]
[1761230593214,6.0020861,3840.2,3839.4,2.60452175]
[1761230593506,6.0020861,3840.2,3839.5,2.60449145]
[1761230593717,2.60420414,3840.0,3838.8,0.002]
[1761230593870,2.60420414,3840.0,3839.4,0.50688]
[1761230594198,2.83185121,3839.9,3839.2,0.50688]
[1761230594405,2.83185121,3839.9,3838.8,0.002]
[1761230594406,2.2498,3839.9,3838.8,0.002]
[1761230594566,0.6946,3839.9,3838.9,2.60491286]
[1761230594772,1.5552,3839.7,3838.8,0.002]
[1761230594967,1.5552,3839.7,3839.3,2.60459433]
[1761230595198,1.5552,3839.7,3839.3,0.50688]
[1761230595401,0.467,3839.6,3838.8,0.002]
[1761230595714,2.60456563,3839.5,3838.9,0.50688]
[1761230595895,0.467,3839.6,3838.9,0.50688]
[1761230596212,2.60451312,3839.5,3838.9,0.50688]
[1761230596420,1.5552,3839.4,3838.8,0.002]
[1761230596711,3.398,3839.3,3838.8,0.002]
[1761230596879,6.00266028,3839.3,3838.8,0.002]
[1761230597084,2.60476204,3839.2,3838.8,0.002]
[1761230597273,3.865,3839.3,3838.8,0.002]
[1761230597468,3.865,3839.3,3838.8,0.50888]
[1761230597667,0.2276,3838.9,3838.8,0.002]
[1761230597872,2.0222,3839.2,3838.8,0.002]
[1761230598088,4.62613106,3839.2,3839.1,0.50688]
[1761230598568,3.398,3839.2,3838.9,0.50688]
[1761230598902,3.398,3839.2,3838.9,3.11178006]
[1761230599087,1.5552,3839.7,3838.9,0.50688]
[1761230599297,3.398,3839.6,3838.8,0.002]
[1761230599479,1.5552,3839.5,3839.0,0.50688]
[1761230599679,2.60468914,3839.3,3838.8,0.002]
[1761230599895,2.60471524,3839.2,3838.8,0.002]
[1761230600093,3.398,3839.1,3838.8,0.002]
[1761230600402,1.5552,3839.0,3838.8,0.002]
[1761230600601,0.6946,3839.4,3838.8,0.002]
[1761230600602,3.398,3838.9,3838.8,0.002]
[1761230601818,3.865,3838.9,3838.8,0.002]
[1761230601998,3.9954,3838.9,3838.8,0.002]
[1761230602503,5.0836,3838.9,3838.8,0.002]
[1761230603581,5.0836,3838.9,3838.8,0.50888]
[1761230603908,5.0836,3838.9,3838.8,3.11386072]
[1761230603909,0.1304,3838.9,3838.8,3.11386072]
[1761230604084,3.5284,3838.9,3838.8,3.11386072]
[1761230604287,3.5284,3838.9,3838.8,0.50888]
[1761230604678,3.5284,3838.9,3838.8,0.002]
[1761230605106,3.5284,3838.9,3838.8,3.11386072]
[1761230605321,0.1304,3838.9,3838.8,3.11386072]
[1761230605491,3.5284,3838.9,3838.8,3.11386072]
[1761230605690,0.2276,3839.9,3839.3,0.50688]
[1761230605890,0.1304,3839.4,3839.3,0.50688]
[1761230606226,3.5284,3839.4,3839.3,3.11152147]
[1761230606423,3.5284,3839.4,3839.3,0.50688]
[1761230607006,3.5284,3839.4,3839.2,0.50688]
[1761230607311,0.5974,3839.3,3838.8,0.002]
[1761230607609,0.1304,3838.9,3838.8,3.11386072]
[1761230607912,3.5284,3838.9,3838.8,0.50888]
[1761230609409,3.762,3838.9,3838.8,0.50888]
[1761230609814,4.2128,3838.9,3838.8,0.50888]
[1761230610108,0.2336,3839.2,3838.8,0.002]
[1761230610312,3.398,3839.1,3838.8,0.002]
[1761230610608,3.8488,3839.1,3838.8,0.002]
[1761230610907,6.45359526,3839.1,3838.8,0.002]
[1761230611107,0.2336,3838.9,3838.8,0.002]
[1761230611609,3.398,3838.9,3838.8,0.002]
[1761230611816,3.398,3838.9,3838.8,3.11386072]
[1761230612210,3.398,3838.9,3838.8,0.50888]
[1761230613831,4.0824,3838.9,3838.8,0.002]
[1761230614002,3.398,3838.9,3838.8,0.002]
[1761230614205,2.60451127,3839.5,3839.0,0.50688]
[1761230614403,1.5552,3839.3,3839.0,0.50688]
[1761230615599,1.5552,3839.3,3839.1,0.50688]
[1761230615800,3.398,3839.2,3839.1,3.11165716]
[1761230616216,3.398,3839.2,3839.1,0.50688]
[1761230617233,0.001,3839.8,3839.2,0.50688]
[1761230617422,4.1596502,3839.6,3839.2,0.50688]
[1761230617803,1.5552,3839.6,3839.1,3.1116502]
[1761230618012,1.5552,3839.6,3839.1,0.50688]
[1761230618539,3.05531786,3839.5,3839.0,0.50688]
[1761230618907,0.4508,3839.4,3839.0,0.50688]
[1761230619116,3.398,3839.3,3839.0,0.50688]
[1761230619319,3.398,3839.3,3839.0,2.60483384]
[1761230619517,3.398,3839.3,3839.1,3.11164048]
[1761230619904,0.1304,3839.2,3839.0,3.11169845]
[1761230620108,3.398,3839.3,3839.0,0.50688]
[1761230620332,0.1304,3839.1,3839.0,0.50688]
[1761230620732,0.1304,3839.1,3838.9,0.50688]
[1761230621036,3.398,3839.3,3838.9,0.50688]
[1761230621336,0.1304,3839.0,3838.9,3.11179286]
[1761230621841,0.1304,3839.0,3838.9,3.68368348]
[1761230622012,0.4508,3840.1,3839.4,0.50688]
[1761230622212,0.1304,3839.5,3839.4,0.50688]
[1761230622407,0.1304,3839.6,3839.5,3.11136494]
[1761230622741,3.5274,3839.6,3839.5,0.50688]
[1761230623239,3.5274,3839.6,3839.5,3.11138579]
[1761230623738,4.16023865,3840.2,3839.7,3.11125013]
[1761230623739,3.397,3839.9,3839.7,3.11125013]
[1761230626030,3.397,3839.9,3839.7,0.50688]
[1761230626236,0.1314,3839.8,3839.7,0.50688]
[1761230626540,0.1314,3839.8,3839.7,3.11125013]
[1761230626712,0.1314,3839.8,3839.7,0.50688]
[1761230627550,0.5822,3839.8,3839.1,0.002]
[1761230627845,0.1304,3839.2,3839.1,0.002]
[1761230628016,3.5264,3839.2,3839.1,0.002]
[1761230628225,4.9512,3839.2,3839.1,0.002]
[1761230628641,0.4508,3839.7,3839.6,0.50688]
[1761230628842,0.4508,3839.7,3839.1,0.50888]
[1761230628843,4.15966344,3839.6,3839.1,0.002]
[1761230629151,2.60451394,3839.5,3839.1,0.002]
[1761230629352,0.4508,3839.5,3839.1,0.002]
[1761230629554,0.4508,3839.4,3839.1,0.002]
[1761230629760,3.396,3839.3,3839.2,3.11158931]
[1761230629958,3.396,3839.3,3839.2,3.73411538]
[1761230630253,3.8468,3839.3,3839.2,0.50688]
[1761230630557,3.8468,3839.3,3839.1,0.002]
[1761230630954,3.396,3839.3,3839.1,0.002]
[1761230631256,3.8468,3839.3,3839.2,0.50688]
[1761230632344,2.60451035,3839.5,3839.3,0.50688]
[1761230632545,3.396,3839.4,3839.3,0.50688]
[1761230632760,2.60451035,3839.5,3839.1,0.002]
[1761230633059,0.001,3839.8,3839.1,0.002]
[1761230633060,3.396,3839.4,3839.1,0.002]
[1761230633259,3.396,3839.3,3839.1,0.002]
[1761230633429,1.5552,3839.5,3839.1,0.002]
[1761230633631,3.396,3839.4,3839.1,0.50888]
[1761230633837,3.396,3839.4,3839.1,0.002]
[1761230634126,3.396,3839.4,3839.3,0.50688]
[1761230634346,2.6044876,3839.6,3839.3,0.50688]
[1761230634557,3.396,3839.4,3839.1,0.002]
[1761230634738,2.60453193,3839.5,3839.1,0.002]
[1761230635060,3.396,3839.4,3839.1,0.002]
[1761230635626,3.396,3839.4,3839.1,0.50888]
[1761230635826,0.4508,3839.5,3839.3,0.50688]
[1761230636053,3.396,3839.4,3839.2,0.50688]
[1761230636258,3.396,3839.3,3839.2,0.50688]
[1761230636627,3.396,3839.3,3839.1,0.50888]
[1761230636959,3.396,3839.3,3839.1,0.002]
[1761230637157,1.5552,3839.7,3839.1,0.002]
[1761230637359,1.5552,3839.5,3839.1,0.002]
[1761230637561,1.5552,3839.5,3839.1,0.50888]
[1761230637762,0.001,3839.8,3839.7,0.50688]
[1761230637983,0.001,3839.8,3839.7,3.11125013]
[1761230638272,3.397,3839.8,3839.7,3.11125013]
[1761230639434,3.397,3839.8,3839.7,0.50688]
[1761230639634,3.397,3839.8,3839.7,3.11125013]
[1761230640465,3.397,3839.8,3839.7,0.50688]
[1761230640466,3.396,3839.8,3839.7,0.50688]
[1761230640674,3.396,3839.8,3839.7,3.11125013]
[1761230641050,3.396,3839.8,3839.7,0.50688]
[1761230641258,2.60451284,3839.5,3839.1,0.002]
[1761230641479,3.395,3839.4,3839.1,0.002]
[1761230641652,1.5552,3839.3,3839.1,0.002]
[1761230641841,3.395,3839.4,3839.1,0.002]
[1761230642164,3.395,3839.3,3839.2,0.50688]
[1761230642362,3.395,3839.3,3839.2,3.11158931]
[1761230643037,0.001,3839.8,3839.3,3.11150308]
[1761230643259,0.001,3839.8,3839.4,3.11144602]
[1761230643464,3.395,3839.7,3839.6,0.50688]
[1761230643681,3.395,3839.7,3839.5,0.50688]
[1761230643884,3.8623,3839.7,3839.6,0.50688]
[1761230644189,3.8623,3839.7,3839.4,0.50688]
[1761230644360,3.395,3839.7,3839.4,0.50688]
[1761230644690,3.395,3839.7,3839.6,0.50688]
[1761230645058,0.001,3839.8,3839.6,0.50688]
[1761230645255,0.001,3839.8,3839.7,2.60437013]
[1761230645562,1.85,3839.8,3839.7,0.50688]
[1761230646361,3.8725,3839.8,3839.1,0.002]
[1761230646561,1.5552,3839.6,3839.2,2.60469776]
[1761230646892,1.5544,3839.6,3839.5,0.50688]
[1761230647073,0.001,3839.8,3839.6,0.50688]
[1761230647284,2.63,3839.7,3839.6,0.50688]
[1761230647466,2.63,3839.7,3839.5,3.11137312]
[1761230647862,0.001,3839.8,3839.7,3.11125013]
[1761230648063,3.385,3839.8,3839.7,0.50688]
[1761230648706,3.385,3839.8,3839.7,3.11125013]
[1761230648901,3.395,3839.8,3839.7,3.11125013]
[1761230649204,3.395,3839.8,3839.7,0.50688]
[1761230649563,3.8623,3839.8,3839.7,0.50688]
[1761230650460,6.4666023,3839.8,3839.7,0.50688]
[1761230650689,3.8623,3839.8,3839.7,0.50688]
[1761230650893,3.8623,3839.8,3839.1,0.002]
[1761230650894,1.5552,3839.7,3839.1,0.002]
[1761230651080,0.1304,3839.2,3839.1,0.002]
[1761230651278,3.5244,3839.2,3839.1,2.60677639]
[1761230651480,0.1304,3839.2,3839.1,3.68571917]
[1761230651792,0.001,3839.8,3839.5,0.50688]
[1761230651961,1.225,3839.7,3839.5,0.50688]
[1761230652161,2.60535669,3839.8,3839.2,3.11157587]
[1761230652361,3.394,3839.7,3839.2,3.11157587]
[1761230652563,3.394,3839.7,3839.4,0.50688]
[1761230653391,3.394,3839.7,3839.2,0.50688]
[1761230653597,2.604527,3839.5,3839.1,0.002]
[1761230653894,0.4673,3839.4,3839.1,0.002]
[1761230654061,3.07188873,3839.4,3839.1,0.002]
[1761230654264,5.99869756,3839.3,3839.1,0.002]
[1761230654459,6.46599756,3839.3,3839.1,0.002]
[1761230654664,0.4673,3839.2,3839.1,0.002]
[1761230654860,0.001,3839.8,3839.1,0.002]
[1761230654861,0.001,3839.8,3839.7,0.50688]
[1761230655066,4.9502,3839.8,3839.7,0.50688]
[1761230655267,5.4175,3839.8,3839.7,0.50688]
[1761230655569,4.9502,3839.8,3839.7,0.50688]
[1761230655794,7.5545023,3839.8,3839.7,0.50688]
[1761230655996,8.0218023,3839.8,3839.7,0.50688]
[1761230658583,5.4175,3839.8,3839.7,0.50688]
[1761230658785,0.001,3839.8,3839.7,3.11125013]
[1761230658989,3.394,3839.8,3839.7,0.81800501]
[1761230659328,3.394,3839.8,3839.7,0.50688]
[1761230661588,3.5244,3839.8,3839.7,0.50688]
[1761230661789,3.394,3839.8,3839.7,0.50688]
[1761230661990,3.394,3839.8,3839.7,3.11125013]
[1761230662215,0.001,3839.8,3839.7,3.68282566]
[1761230663341,3.394,3839.8,3839.7,3.68282566]
[1761230663506,3.394,3839.8,3839.7,3.11125013]
[1761230664124,0.001,3839.8,3839.7,3.11125013]
[1761230671418,0.0002,3839.8,3839.7,3.11125013]
[1761230671820,0.4394,3839.8,3839.5,0.002]
[1761230672220,2.6043755,3839.7,3839.5,0.002]
[1761230672416,3.8302,3839.6,3839.5,0.002]
[1761230672756,0.0002,3839.8,3839.7,2.60437013]
[1761230672933,3.3912,3839.8,3839.7,3.11125013]
[1761230676430,0.0002,3839.8,3839.7,3.11125013]
[1761230676662,3.3912,3839.8,3839.7,3.68302022]
[1761230678360,0.0002,3839.8,3839.7,3.68302022]
[1761230678560,3.3912,3839.8,3839.7,3.68302022]
[1761230678743,3.3912,3839.8,3839.7,0.50688]
[1761230678947,3.3912,3839.8,3839.7,3.11125013]
[1761230679345,0.0002,3839.8,3839.7,3.11125013]
[1761230680731,0.0002,3839.8,3839.7,4.44630469]
[1761230682842,0.2315,3839.8,3839.7,0.28673456]
[1761230683166,0.0002,3839.8,3839.7,2.89110469]
[1761230683670,0.6707,3839.8,3839.7,0.28673456]
[1761230683875,0.6707,3839.8,3839.6,0.002]
[1761230684179,0.4392,3839.7,3839.6,0.002]
[1761230684334,3.04357013,3839.7,3839.6,0.002]
[1761230684536,0.4392,3839.7,3839.6,0.002]
[1761230685670,0.4392,3839.7,3839.6,0.50888]
[1761230686047,4.59877013,3839.7,3839.6,0.002]
[1761230688069,5.52514412,3839.7,3839.6,0.002]
[1761230688286,8.82961842,3839.7,3839.6,0.002]
[1761230688883,13.21861842,3839.7,3839.6,0.002]
[1761230690388,9.82961842,3839.7,3839.6,0.002]
[1761230690583,13.21861842,3839.7,3839.6,0.002]
[1761230691686,12.21861842,3839.7,3839.6,0.002]
[1761230692877,12.34901842,3839.7,3839.6,0.002]
[1761230695471,8.96001842,3839.7,3839.6,0.002]
[1761230695673,12.34901842,3839.7,3839.6,0.002]
[1761230695999,12.34821842,3839.7,3839.6,0.002]
[1761230696596,7.27361842,3839.7,3839.6,0.002]
[1761230696778,6.43177013,3839.7,3839.6,0.002]
[1761230697895,7.98697013,3839.7,3839.6,0.002]
[1761230698602,7.98797013,3839.7,3839.6,0.002]
[1761230698802,4.59897013,3839.7,3839.6,0.002]
[1761230698969,3.39,3839.7,3839.6,0.50888]
[1761230699163,6.46087013,3839.7,3839.6,0.002]
[1761230699393,6.46087013,3839.7,3839.6,0.50888]
[1761230699722,8.01607013,3839.7,3839.6,0.002]
[1761230700569,4.62707013,3839.7,3839.6,0.50888]
[1761230700770,8.01607013,3839.7,3839.6,0.50888]
[1761230702403,8.01607013,3839.7,3839.6,0.002]
[1761230703209,12.77892995,3839.7,3839.6,0.002]
[1761230703366,8.01507013,3839.7,3839.6,0.002]
[1761230703563,1.5562,3839.7,3839.6,0.002]
[1761230703820,1.5562,3839.7,3839.6,0.50888]
[1761230703969,0.001,3839.7,3839.6,3.42486603]
[1761230704169,2.446,3839.7,3839.6,3.42486603]
[1761230704507,3.389,3839.7,3839.6,3.42486603]
[1761230704804,0.001,3839.7,3839.6,3.42486603]
[1761230705108,3.389,3839.7,3839.6,3.42486603]
[1761230707094,3.389,3839.7,3839.6,3.55526603]
[1761230707479,0.001,3839.7,3839.6,3.55526603]
[1761230709316,0.001,3839.7,3839.6,3.42486603]
[1761230711526,0.001,3839.7,3839.6,4.98006603]
[1761230712491,0.001,3839.7,3839.6,3.42486603]
[1761230713806,0.001,3839.7,3839.6,2.91798603]
[1761230714124,0.4675,3839.7,3839.6,0.002]
[1761230714631,0.001,3839.7,3839.6,2.60643796]
[1761230715128,0.001,3839.7,3839.6,3.11331796]
[1761230716950,0.001,3839.7,3839.6,0.44070404]
[1761230717096,0.001,3839.7,3838.3,0.93067938]
[1761230717097,2.60518431,3838.5,3838.3,0.93067938]
[1761230717296,2.60518431,3838.5,3838.0,1.38988903]
[1761230717297,2.60545582,3838.1,3838.0,0.002]
[1761230717533,2.60545582,3838.1,3836.3,0.0485]
[1761230717534,1.5552,3838.0,3836.3,0.0485]
[1761230717745,0.2236,3837.0,3836.3,0.0485]
[1761230717914,3.385,3836.9,3836.3,0.0485]
[1761230718098,0.2236,3837.9,3836.4,1.56510475]
[1761230718099,3.385,3837.8,3836.4,1.56510475]
[1761230718311,3.29574421,3837.9,3836.5,0.32193048]
[1761230718510,0.4665,3837.8,3836.0,0.0505]
[1761230718712,0.2236,3837.9,3836.1,2.369]
[1761230719056,2.25128384,3838.8,3836.2,1.5552]
[1761230719057,2.7596,3838.8,3836.2,1.5552]
[1761230719259,2.536,3838.8,3837.3,1.5552]
[1761230719455,0.4667,3839.8,3837.3,1.5552]
[1761230719456,0.4665,3839.3,3838.1,0.50688]
[1761230719664,2.409,3839.2,3838.8,0.50688]
[1761230719961,2.409,3839.2,3839.1,0.50688]
[1761230720159,2.409,3839.2,3839.1,3.16215716]
[1761230720368,3.3852,3839.8,3839.6,0.50688]
[1761230720668,0.001,3840.2,3840.0,3.11104666]
[1761230720811,0.001,3840.2,3840.0,3.13708832]
[1761230721123,0.001,3840.2,3840.0,5.45145181]
[1761230721323,0.001,3840.2,3840.0,1.24158515]
[1761230721523,0.4675,3840.1,3840.0,0.50688]
[1761230721734,0.001,3840.1,3840.0,0.50688]
[1761230721924,3.389,3840.1,3840.0,0.50688]
[1761230722122,0.001,3840.1,3840.0,3.11104666]
[1761230723321,0.001,3840.1,3840.0,4.71674666]
[1761230723522,0.001,3840.1,3840.0,5.44885046]
[1761230724619,0.001,3840.1,3840.0,5.39835046]
[1761230724928,0.001,3840.1,3840.0,1.2389838]
[1761230725115,0.001,3840.1,3840.0,3.11104666]
[1761230726778,0.001,3840.1,3838.8,0.0505]
[1761230726779,0.001,3840.1,3839.1,2.65526504]
[1761230726932,0.2181,3840.0,3839.1,0.0505]
[1761230727262,3.001,3839.9,3839.0,2.60484501]
[1761230727566,3.001,3839.9,3839.7,0.50688]
[1761230727756,0.2181,3839.8,3839.7,0.50688]
[1761230727954,0.6757,3839.8,3838.5,0.0505]
[1761230728157,0.6757,3839.8,3839.4,2.60452777]
[1761230728359,0.2181,3839.8,3839.2,2.60467866]
[1761230728564,0.4576,3839.7,3839.3,2.60463652]
[1761230728877,0.4576,3839.7,3839.4,0.26046365]
[1761230729076,0.4576,3839.7,3839.4,0.50688]
[1761230729378,0.4576,3839.7,3839.4,3.11144413]
[1761230729562,0.1304,3839.5,3839.2,2.60469578]
[1761230729875,0.1304,3839.2,3838.6,0.1304]
[1761230730079,3.388,3839.1,3839.0,3.11172501]
[1761230730237,0.001,3840.1,3839.3,0.50688]
[1761230730438,0.1304,3840.0,3839.9,3.11111448]
[1761230730634,0.001,3840.1,3840.0,3.11104666]
[1761230730860,0.001,3840.1,3840.0,3.81297477]
[1761230731449,0.001,3840.1,3840.0,3.86347477]
[1761230731961,0.001,3840.1,3840.0,3.81297477]
[1761230732136,0.001,3840.1,3840.0,3.86347477]
[1761230733170,0.001,3840.1,3840.0,5.41867477]
[1761230733377,0.001,3840.1,3840.0,5.36817477]
[1761230733599,0.001,3840.1,3840.0,3.24144666]